bitfinex-derivatives/quotes_SOLF0:USTF0_20241231
["timestamp","ask_amount","ask_price","bid_price","bid_amount"]
[1735679734537,6.58996587,193.08,193.01,35.1146712]
[1735679734737,6.58996587,193.08,193.01,28.52470533]
[1735679734936,9.18426587,193.08,193.01,7.15626056]
[1735679735143,6.58996587,193.06,193.01,7.15626056]
[1735679735539,6.58996587,193.03,193.01,7.15626056]
[1735679735745,3.06,193.05,193.01,7.15626056]
[1735679736045,6.58996587,193.05,193.01,7.15626056]
[1735679736240,6.58996587,193.05,192.89,7.15626056]
[1735679736544,6.58996587,193.05,192.97,6.58996587]
[1735679737239,6.58996587,193.03,192.93,3.06]
[1735679737443,6.58996587,193.03,192.96,6.58996587]
[1735679738541,6.58996587,193.05,192.98,6.58996587]
[1735679738741,6.58996587,193.01,192.97,2.5957]
[1735679739241,6.58996587,193.01,192.94,3.08]
[1735679739542,6.58996587,193.01,192.96,2.5959]
[1735679741440,6.58996587,192.99,192.95,2.5961]
[1735679741641,6.58996587,192.99,192.93,9.66996587]
[1735679742039,6.58996587,192.99,192.93,6.58996587]
[1735679743142,6.58996587,192.99,192.91,3.08]
[1735679743347,6.58996587,192.99,192.91,9.66996587]
[1735679743942,6.58996587,192.99,192.95,2.596]
[1735679744744,6.58996587,192.99,192.96,2.5959]
[1735679745248,9.18566587,192.99,192.92,2.5965]
[1735679745446,6.58996587,192.97,192.9,6.58996587]
[1735679747750,6.58996587,193.0,192.92,6.58996587]
[1735679748951,3.08,193.02,192.94,6.58996587]
[1735679749155,6.58996587,193.03,192.96,6.58996587]
[1735679749757,6.58996587,193.03,192.98,2.5955]
[1735679750858,6.58996587,193.03,192.87,21.36706141]
[1735679751055,6.58996587,192.97,192.87,21.36706141]
[1735679751260,6.58996587,192.95,192.87,21.36706141]
[1735679751455,6.58996587,192.95,192.88,6.58996587]
[1735679751859,9.18596587,192.95,192.88,6.58996587]
[1735679752257,2.5962,192.94,192.88,9.18686587]
[1735679753155,6.58996587,192.95,192.88,6.58996587]
[1735679753355,6.58996587,192.91,192.87,21.36706141]
[1735679754662,6.58996587,192.91,192.87,23.96416141]
[1735679755964,6.58996587,192.91,192.87,21.36706141]
[1735679756165,6.58996587,192.91,192.88,2.5969]
[1735679756365,6.58996587,192.93,192.88,2.5969]
[1735679756559,6.58996587,192.95,192.88,6.58996587]
[1735679756961,6.58996587,192.95,192.91,2.5964]
[1735679757459,6.58996587,192.95,192.92,2.5964]
[1735679757966,6.58996587,192.93,192.9,2.5965]
[1735679758774,6.58996587,192.93,192.87,24.44706141]
[1735679759067,6.58996587,192.93,192.91,2.5965]
[1735679759262,2.5958,192.97,192.88,6.58996587]
[1735679759567,6.58996587,192.94,192.92,2.5963]
[1735679760265,6.58996587,192.94,192.91,2.5965]
[1735679760465,6.58996587,192.94,192.87,24.44706141]
[1735679760657,6.58996587,192.94,192.88,6.58996587]
[1735679761462,6.58996587,192.94,192.9,2.5965]
[1735679762767,6.58996587,192.94,192.91,2.5965]
[1735679762966,3.0604,193.08,192.92,9.66996587]
[1735679763166,6.58996587,193.02,192.95,6.58996587]
[1735679763363,6.58996587,193.02,192.98,2.5956]
[1735679763566,9.18516587,193.02,192.98,2.5956]
[1735679763866,4.6909,193.07,192.95,9.66996587]
[1735679764065,9.18486587,193.03,193.0,2.5953]
[1735679765264,2.5947,193.06,193.01,2.5951]
[1735679765570,8.20086587,193.07,193.0,3.08]
[1735679765870,10.79526587,193.07,193.03,2.5949]
[1735679766072,6.58996587,193.07,193.01,9.66996587]
[1735679766270,6.58996587,193.09,193.01,9.66996587]
[1735679766572,9.18406587,193.09,193.01,9.66996587]
[1735679766963,6.58996587,193.09,193.06,2.5945]
[1735679767771,2.5936,193.13,193.07,3.08]
[1735679768074,6.58996587,193.12,193.07,3.08]
[1735679768278,2.5935,193.14,193.07,5.6743]
[1735679768473,10.32265781,193.16,193.07,3.08]
[1735679769270,2.5935,193.14,193.09,2.594]
[1735679769978,3.08,193.28,193.12,10.32265781]
[1735679770274,10.32265781,193.26,193.13,3.08]
[1735679770665,1.5429,193.27,193.15,10.32265781]
[1735679771072,4.1347,193.27,193.21,2.5925]
[1735679771277,1.5429,193.27,193.22,3.08]
[1735679771670,5.7726,193.28,193.22,3.08]
[1735679771973,2.5917,193.28,193.22,5.6724]
[1735679772167,10.32265781,193.32,193.22,3.08]
[1735679772370,2.5915,193.29,193.23,2.5922]
[1735679772672,10.32265781,193.26,193.16,3.08]
[1735679773166,2.5921,193.25,193.17,2.5929]
[1735679773366,10.32265781,193.26,193.16,3.08]
[1735679773566,10.32265781,193.29,193.17,10.32265781]
[1735679773967,2.5921,193.25,193.18,2.5929]
[1735679774576,2.5921,193.24,193.18,2.5929]
[1735679778676,10.32265781,193.29,193.15,2.5932]
[1735679778883,10.32265781,193.25,193.16,3.08]
[1735679779384,10.32265781,193.25,193.13,1.4974]
[1735679779385,2.5928,193.19,193.15,3.08]
[1735679779580,3.08,193.26,193.13,1.4974]
[1735679779581,10.32265781,193.22,193.13,1.4974]
[1735679779879,2.5929,193.18,193.13,4.5774]
[1735679780986,10.32265781,193.22,193.13,4.5774]
[1735679781185,2.5928,193.19,193.13,7.171]
[1735679783178,2.5928,193.19,193.13,5.6736]
[1735679784485,2.5928,193.19,193.13,2.5936]
[1735679784688,2.5928,193.19,193.13,5.6736]
[1735679784890,10.32265781,193.22,193.13,5.6736]
[1735679785193,10.32265781,193.22,193.14,2.5934]
[1735679785389,10.32265781,193.22,193.12,10.32265781]
[1735679785590,2.593,193.18,193.13,3.08]
[1735679785991,10.32265781,193.22,193.14,2.5934]
[1735679786386,10.32265781,193.25,193.14,2.5934]
[1735679786889,2.5928,193.19,193.14,2.5934]
[1735679787092,10.32265781,193.25,193.13,3.08]
[1735679787291,10.32265781,193.25,193.15,2.5932]
[1735679787489,2.5926,193.21,193.13,3.08]
[1735679787789,2.5926,193.21,193.16,2.5931]
[1735679789692,10.32265781,193.25,193.16,2.5931]
[1735679789693,2.5927,193.2,193.16,2.5931]
[1735679791696,2.5927,193.2,193.13,3.08]
[1735679791887,2.5927,193.2,193.17,2.593]
[1735679796892,10.32265781,193.25,193.12,10.32265781]
[1735679797098,10.32265781,193.19,193.09,1.68107368]
[1735679797496,3.08,193.21,193.09,1.68107368]
[1735679797497,10.32265781,193.16,193.09,1.68107368]
[1735679797697,2.5935,193.14,193.09,1.68107368]
[1735679797899,10.32265781,193.16,193.09,1.68107368]
[1735679798794,2.594,193.1,193.09,1.68107368]
[1735679799599,2.5941,193.09,193.05,5.6746]
[1735679801795,10.32265781,193.13,193.03,2.5948]
[1735679802395,1.5407,193.12,193.03,2.5948]
[1735679802593,2.5943,193.08,193.03,2.5948]
[1735679802792,10.32265781,193.1,193.01,2.5951]
[1735679803094,1.5407,193.12,192.96,7.15626056]
[1735679803095,10.32265781,193.07,192.96,7.15626056]
[1735679803294,3.08,193.06,192.94,3.08]
[1735679803699,3.08,193.06,192.93,38.84736314]
[1735679803898,2.5953,193.01,192.94,3.08]
[1735679804298,2.595,193.03,192.96,2.5958]
[1735679804496,3.08,193.06,192.96,2.5958]
[1735679805590,10.32265781,193.04,192.95,2.596]
[1735679806098,2.5955,192.99,192.95,2.596]
[1735679807700,1.4677,193.03,192.94,2.5961]
[1735679807999,1.4677,193.03,192.92,3.08]
[1735679808000,2.5956,192.98,192.92,3.08]
[1735679808298,2.5956,192.98,192.92,2.5963]
[1735679808898,2.5955,192.99,192.94,2.5961]
[1735679809698,2.5956,192.98,192.94,2.5961]
[1735679812694,2.5956,192.98,192.91,3.08]
[1735679812892,2.5956,192.98,192.93,2.5963]
[1735679813203,2.5958,192.97,192.91,3.08]
[1735679813800,2.5958,192.97,192.92,2.5964]
[1735679816505,2.5959,192.96,192.92,2.5964]
[1735679817505,2.596,192.95,192.91,5.6765]
[1735679819506,2.5962,192.94,192.9,2.5967]
[1735679820511,10.32265781,192.98,192.9,2.5967]
[1735679820713,2.596,192.95,192.9,2.5967]
[1735679821012,10.32265781,192.98,192.9,2.5967]
[1735679821913,2.5962,192.94,192.9,2.5967]
[1735679826325,9.21483676,192.94,192.9,2.5967]
[1735679826522,6.61863676,192.92,192.9,2.5967]
[1735679828421,2.5962,192.94,192.9,2.5967]
[1735679828422,2.5962,192.94,192.9,2.5966]
[1735679828617,6.61863676,192.93,192.9,2.5966]
[1735679830724,6.61863676,192.91,192.87,21.36706141]
[1735679831226,6.61863676,192.91,192.88,2.5969]
[1735679831821,6.61863676,192.91,192.89,2.5968]
[1735679833322,6.61863676,192.91,192.88,2.5969]
[1735679834426,6.61863676,192.91,192.87,21.36706141]
[1735679834626,9.21533676,192.91,192.87,23.96416141]
[1735679835327,6.61863676,192.89,192.87,21.36706141]
[1735679835924,9.21553676,192.89,192.87,21.36706141]
[1735679850836,2.5969,192.88,192.87,21.36706141]
[1735679851141,6.61863676,192.89,192.87,21.36706141]
[1735679851634,9.21553676,192.89,192.87,21.36706141]
[1735679851933,6.61863676,192.89,192.87,21.36706141]
[1735679853138,2.5969,192.88,192.87,21.36706141]
[1735679854944,2.5968,192.89,192.87,21.36706141]
[1735679855242,6.61863676,192.88,192.87,21.36706141]
[1735679855638,1.6084,192.94,192.87,21.36706141]
[1735679855943,6.61863676,192.9,192.87,21.36706141]
[1735679856442,6.61863676,192.9,192.89,2.5967]
[1735679862248,6.61863676,192.93,192.88,3.08]
[1735679862848,6.61863676,192.93,192.91,2.5965]
[1735679864846,3.1625,192.98,192.91,2.5965]
[1735679865045,6.61863676,192.95,192.89,9.69863676]
[1735679865646,9.21493676,192.93,192.89,2.5967]
[1735679865847,6.61863676,192.91,192.87,21.36706141]
[1735679866149,6.61863676,192.89,192.87,21.36706141]
[1735679866643,6.61863676,192.94,192.87,27.98569817]
[1735679868650,6.61863676,192.94,192.91,2.5964]
[1735679870447,3.89630441,192.97,192.87,27.98569817]
[1735679870647,16.02894375,192.98,192.91,6.61863676]
[1735679870951,6.61863676,192.98,192.91,6.61863676]
[1735679873651,2.5955,192.99,192.91,6.61863676]
[1735679873847,6.61863676,192.97,192.91,6.61863676]
[1735679874551,2.5955,192.99,192.93,6.61863676]
[1735679874747,2.5955,192.99,192.94,3.08]
[1735679875449,2.5955,192.99,192.95,2.5959]
[1735679876751,6.61863676,192.96,192.93,3.08]
[1735679878653,6.61863676,192.94,192.91,3.08]
[1735679880048,9.21483676,192.94,192.91,3.08]
[1735679880354,6.61863676,192.98,192.91,9.69863676]
[1735679880752,2.5958,192.97,192.93,2.5962]
[1735679882858,6.61863676,192.96,192.93,2.5962]
[1735679883760,2.5958,192.97,192.93,2.5962]
[1735679883955,85.01040212,193.09,192.91,9.69863676]
[1735679884155,2.5954,193.0,192.96,2.5959]
[1735679884356,2.5954,193.0,192.96,5.6759]
[1735679885354,6.61863676,193.01,192.96,5.6759]
[1735679885553,9.21413676,192.99,192.96,5.6759]
[1735679886163,9.21413676,192.99,192.96,3.08]
[1735679887161,2.5955,192.99,192.96,3.08]
[1735679887458,2.5955,192.99,192.96,5.6758]
[1735679888654,2.5957,192.97,192.94,3.08]
[1735679888850,6.61863676,192.98,192.94,3.08]
[1735679889560,6.61863676,192.98,192.95,2.596]
[1735679889858,6.61863676,192.98,192.94,3.08]
[1735679890260,9.21413676,192.98,192.94,5.676]
[1735679890761,6.61863676,192.98,192.94,5.676]
[1735679890952,2.5953,193.0,192.95,2.5958]
[1735679891158,9.21393676,193.0,192.95,2.5958]
[1735679891756,9.21393676,193.0,192.96,2.5957]
[1735679892063,2.595,193.02,192.95,6.61863676]
[1735679892857,2.595,193.02,192.97,2.5956]
[1735679894564,2.5951,193.01,192.97,2.5956]
[1735679895461,9.21373676,193.01,192.97,2.5956]
[1735679895661,6.61863676,192.99,192.91,6.61863676]
[1735679895861,6.61863676,192.95,192.92,3.08]
[1735679896563,6.61863676,192.95,192.91,3.08]
[1735679897765,9.21473676,192.95,192.91,5.6765]
[1735679898369,2.5952,193.01,192.94,6.61863676]
[1735679898562,2.5952,193.01,192.96,6.61863676]
[1735679898762,2.5952,193.01,192.96,9.69863676]
[1735679899467,2.5952,193.01,192.97,2.5956]
[1735679899677,6.61863676,193.01,192.96,3.08]
[1735679899968,2.5955,192.99,192.96,3.08]
[1735679900765,9.21413676,192.99,192.96,3.08]
[1735679900966,2.596,192.96,192.9,1.546]
[1735679901168,6.61863676,192.95,192.9,1.546]
[1735679901570,9.21483676,192.95,192.9,2.5967]
[1735679901770,6.61863676,192.93,192.87,21.36706141]
[1735679902173,2.5968,192.91,192.87,21.36706141]
[1735679902374,6.61863676,192.91,192.87,21.36706141]
[1735679902582,6.61863676,192.89,192.87,21.36706141]
[1735679902873,2.597,192.88,192.87,21.36706141]
[1735679904072,6.61863676,192.89,192.87,21.36706141]
[1735679904375,9.21553676,192.89,192.87,21.36706141]
[1735679917485,2.597,192.88,192.87,21.36706141]
[1735679918082,9.21553676,192.89,192.87,21.36706141]
[1735679918883,6.61863676,192.89,192.87,21.36706141]
[1735679919182,6.61863676,192.93,192.87,21.36706141]
[1735679919685,2.5964,192.93,192.89,2.5968]
[1735679919886,6.61863676,192.92,192.87,21.36706141]
[1735679920282,3.12,192.97,192.89,2.5968]
[1735679920584,6.61863676,192.93,192.89,2.5968]
[1735679920777,9.21503676,192.93,192.9,2.5967]
[1735679921575,9.21503676,192.93,192.87,21.36706141]
[1735679921576,2.5965,192.92,192.89,2.5969]
[1735679921980,6.61863676,192.93,192.9,2.5967]
[1735679923688,9.21503676,192.93,192.9,2.5967]
[1735679923986,6.61863676,192.93,192.87,21.36706141]
[1735679924188,9.21503676,192.93,192.87,21.36706141]
[1735679924986,9.21503676,192.93,192.9,2.5968]
[1735679925186,2.5962,192.95,192.88,9.73863676]
[1735679925690,6.61863676,192.98,192.9,6.61863676]
[1735679925892,9.21443676,192.98,192.92,6.61863676]
[1735679926189,2.5958,192.98,192.92,6.61863676]
[1735679926786,2.5958,192.98,192.94,2.5962]
[1735679926988,2.5958,192.98,192.92,6.61863676]
[1735679928184,2.5958,192.98,192.94,2.5961]
[1735679930696,9.21423676,192.99,192.95,2.596]
[1735679930898,6.61863676,193.01,192.94,6.61863676]
[1735679932494,2.5954,193.0,192.96,2.5958]
[1735679935504,9.21403676,193.0,192.96,2.5958]
[1735679937002,9.21403676,193.0,192.97,2.5958]
[1735679937301,2.5954,193.0,192.97,2.5958]
[1735679937503,2.5953,193.01,192.97,2.5958]
[1735679940102,9.21413676,193.0,192.96,2.5959]
[1735679940301,6.61863676,193.02,192.95,6.61863676]
[1735679940505,3.0339,193.05,192.93,3.12]
[1735679940698,6.61863676,193.02,192.96,6.61863676]
[1735679940898,9.21383676,193.02,192.98,2.5957]
[1735679941301,6.61863676,193.02,192.94,6.61863676]
[1735679941501,6.61863676,192.98,192.89,1.5682]
[1735679941701,6.61863676,192.96,192.9,3.12]
[1735679942600,2.5962,192.95,192.91,2.5965]
[1735679943205,2.5962,192.95,192.9,3.12]
[1735679943403,2.5962,192.95,192.89,8.18683676]
[1735679943599,9.21493676,192.94,192.9,3.12]
[1735679945215,2.5964,192.93,192.89,7.3251]
[1735679946415,2.5963,192.94,192.9,2.5967]
[1735679948512,2.596,192.96,192.91,2.5966]
[1735679948711,6.61863676,192.97,192.89,8.18683676]
[1735679949015,6.61863676,192.97,192.91,6.61863676]
[1735679950311,6.61863676,192.97,192.91,9.77863676]
[1735679950505,6.61863676,192.95,192.87,24.52706141]
[1735679950707,6.61863676,192.95,192.88,6.61863676]
[1735679951511,9.21483676,192.95,192.88,6.61863676]
[1735679951811,9.21483676,192.95,192.89,6.61863676]
[1735679952417,9.21483676,192.95,192.91,2.5966]
[1735679955311,13.256743,193.01,192.92,3.16]
[1735679955511,6.61863676,193.02,192.95,6.61863676]
[1735679956607,2.5953,193.01,192.97,2.5957]
[1735679957310,9.21383676,193.02,192.98,2.5956]
[1735679958015,2.5952,193.02,192.98,2.5956]
[1735679962517,9.21383676,193.02,192.98,2.5956]
[1735679963522,2.5953,193.01,192.98,2.5956]
[1735679968221,9.37880425,193.05,192.99,6.61863676]
[1735679968423,6.61863676,193.07,192.99,6.61863676]
[1735679968623,6.61863676,193.07,193.01,6.61863676]
[1735679968819,2.5947,193.06,193.02,2.5951]
[1735679969524,2.5947,193.06,193.03,2.595]
[1735679969923,10.51378099,193.09,193.01,6.61863676]
[1735679970122,2.5945,193.07,193.04,2.5949]
[1735679970323,3.89514423,193.09,193.03,6.61863676]
[1735679970525,15.99744101,193.1,193.03,6.61863676]
[1735679970717,6.61863676,193.1,193.03,6.61863676]
[1735679971022,2.5942,193.09,193.06,2.5945]
[1735679971822,9.21253676,193.12,193.08,2.5943]
[1735679973322,9.21253676,193.12,193.09,2.5942]
[1735679973523,2.5937,193.13,193.07,9.75863676]
[1735679974225,2.5942,193.1,193.07,3.14]
[1735679975225,6.61863676,193.12,193.07,3.14]
[1735679975421,6.61863676,193.1,193.04,3.12]
[1735679975727,6.61863676,193.06,193.04,3.12]
[1735679977427,2.5947,193.05,193.04,3.12]
[1735679978727,6.61863676,193.06,193.0,9.73863676]
[1735679979123,2.595,193.03,193.0,9.73863676]
[1735679979525,6.61863676,193.06,193.0,9.73863676]
[1735679980831,2.5949,193.04,193.0,12.33403676]
[1735679981325,6.61863676,193.06,193.0,9.73863676]
[1735679981532,2.595,193.03,193.0,9.73863676]
[1735679981830,2.595,193.03,193.0,3.12]
[1735679982125,2.5949,193.04,193.0,3.12]
[1735679982731,6.61863676,193.06,193.0,3.12]
[1735679982930,2.595,193.03,193.0,3.12]
[1735679983529,2.595,193.03,192.99,3.12]
[1735679983734,6.61863676,193.06,192.99,3.12]
[1735679984332,2.5951,193.03,192.99,3.12]
[1735679985428,2.5951,193.03,192.99,5.7155]
[1735679985932,2.5949,193.04,192.99,5.7155]
[1735679986325,2.5949,193.04,192.99,3.12]
[1735679986533,6.61863676,193.06,193.01,2.5952]
[1735679986534,2.5948,193.05,193.01,2.5952]
[1735679987432,2.5951,193.03,192.99,5.7154]
[1735679987631,6.61863676,193.06,193.0,6.61863676]
[1735679987834,6.61863676,193.08,193.0,6.61863676]
[1735679988028,6.61863676,193.08,193.03,2.5949]
[1735679988337,6.61863676,193.08,193.02,6.61863676]
[1735679989229,2.5943,193.09,193.05,2.5947]
[1735679989838,9.66583676,193.1,193.05,2.5947]
[1735679990135,2.5944,193.08,193.05,2.5947]
[1735679991037,2.5944,193.08,192.94,1.4773]
[1735679991038,2.5948,193.05,193.0,6.61863676]
[1735679991235,6.61863676,193.06,193.01,3.12]
[1735679991437,2.5949,193.04,193.01,5.7152]
[1735679992839,6.61863676,193.06,193.01,5.7152]
[1735679993033,2.5948,193.05,193.01,2.5952]
[1735679993536,2.5946,193.07,193.03,2.595]
[1735679993729,6.61863676,193.08,193.02,6.61863676]
[1735679993932,9.66583676,193.1,193.02,6.61863676]
[1735679994335,2.5944,193.08,193.04,9.21343676]
[1735679994740,8.20283676,193.1,193.04,6.61863676]
[1735679994930,2.5942,193.09,193.04,6.61863676]
[1735679995839,2.5942,193.09,193.05,2.5947]
[1735679996341,2.5941,193.1,193.06,9.21313676]
[1735679996533,2.5941,193.1,193.06,6.61863676]
[1735679996739,6.61863676,193.12,193.06,6.61863676]
[1735679996940,2.594,193.11,193.07,2.5944]
[1735679998042,6.61863676,193.12,193.06,6.61863676]
[1735679998241,2.5942,193.1,193.06,9.21323676]
[1735679998439,6.61863676,193.12,193.05,3.12]
[1735679998632,2.5945,193.07,193.05,3.12]
[1735679998836,6.61863676,193.1,193.05,3.12]
[1735679999335,6.61863676,193.08,193.05,3.12]
[1735679999540,6.61863676,193.08,193.01,9.73863676]
[1735679999938,2.5949,193.04,193.01,12.33393676]
[1735680001738,2.5949,193.04,193.01,9.73863676]
[1735680002132,2.5949,193.04,193.01,3.12]
[1735680003240,2.5948,193.05,193.01,3.12]
[1735680003438,13.61399132,193.08,193.02,2.5951]
[1735680003639,9.72053676,193.08,193.02,2.5951]
[1735680004438,0.7890555,193.07,193.02,2.5951]
[1735680004641,9.72053676,193.08,193.01,12.33383676]
[1735680004842,13.61399132,193.08,193.01,12.33383676]
[1735680005042,2.5946,193.06,193.01,9.73863676]
[1735680005245,2.5946,193.06,193.02,2.5951]
[1735680006944,6.61863676,193.06,192.99,2.5954]
[1735680007141,6.61863676,193.02,192.95,3.1434]
[1735680007445,2.5958,192.98,192.93,1.99199827]
[1735680007740,2.5958,192.98,192.94,2.5962]
[1735680008145,2.5959,192.97,192.93,1.99199827]
[1735680008848,2.5957,192.99,192.93,8.61063503]
[1735680009744,2.5957,192.99,192.94,2.5962]
[1735680010750,9.21393676,193.01,192.93,8.61063503]
[1735680011046,6.61863676,193.01,192.95,6.61863676]
[1735680011254,2.5952,193.02,192.96,2.5958]
[1735680011454,2.5952,193.02,192.95,6.61863676]
[1735680011947,2.5953,193.01,192.97,2.5957]
[1735680012340,6.61863676,193.01,192.95,6.61863676]
[1735680012549,6.61863676,193.01,192.95,9.21463676]
[1735680013147,2.5956,192.99,192.95,9.21463676]
[1735680013451,6.61863676,193.01,192.95,6.61863676]
[1735680013647,6.61863676,193.01,192.96,2.5959]
[1735680014047,2.5955,193.0,192.96,2.5959]
[1735680014943,6.61863676,193.01,192.96,2.5959]
[1735680015152,2.5956,192.99,192.96,2.5959]
[1735680018750,2.5956,192.99,192.97,2.5958]
[1735680021656,2.5956,192.99,192.94,6.61863676]
[1735680021859,2.5956,192.99,192.96,2.5959]
[1735680022557,6.61863676,192.97,192.88,4.5132]
[1735680022758,6.61863676,192.95,192.88,11.13183676]
[1735680022960,2.5963,192.94,192.9,2.5967]
[1735680023156,2.5963,192.94,192.88,7.6132]
[1735680023362,2.5963,192.94,192.88,14.23183676]
[1735680023558,2.5963,192.94,192.9,2.5967]
[1735680026056,2.5964,192.93,192.9,2.5967]
[1735680026256,6.61863676,192.95,192.89,2.5968]
[1735680026763,2.5964,192.93,192.89,2.5968]
[1735680027563,2.5964,192.93,192.9,2.5967]
[1735680028559,2.5963,192.94,192.9,2.5967]
[1735680033569,6.61863676,192.95,192.9,2.5967]
[1735680033570,2.5964,192.93,192.9,2.5967]
[1735680034366,6.61863676,192.95,192.9,2.5967]
[1735680034572,2.5963,192.94,192.9,2.5967]
[1735680035972,2.5963,192.94,192.88,9.71863676]
[1735680036171,2.5963,192.94,192.91,2.5965]
[1735680041073,2.5964,192.93,192.91,2.5965]
[1735680043876,6.61863676,192.93,192.87,21.36706141]
[1735680044076,6.61863676,192.93,192.88,2.597]
[1735680044578,9.21533676,192.91,192.88,2.597]
[1735680045873,2.5967,192.91,192.88,2.597]
[1735680047278,2.597,192.88,192.87,21.36706141]
[1735680047482,6.61863676,192.89,192.8,6.61863676]
[1735680047686,6.61863676,192.87,192.76,0.11382191]
[1735680047981,6.61863676,192.87,192.81,2.5979]
[1735680048380,2.5975,192.85,192.81,2.5979]
[1735680048884,9.21583676,192.87,192.81,6.61863676]
[1735680049182,6.61863676,192.88,192.81,6.61863676]
[1735680049586,3.08,192.89,192.81,6.61863676]
[1735680049880,1.4741,192.91,192.83,6.61863676]
[1735680050083,9.34925323,192.94,192.85,6.61863676]
[1735680050281,2.5964,192.93,192.89,2.5968]
[1735680050475,6.61863676,192.94,192.87,6.61863676]
[1735680050678,6.61863676,192.95,192.87,6.61863676]
[1735680050879,6.61863676,192.95,192.89,6.61863676]
[1735680051175,9.21473676,192.95,192.89,6.61863676]
[1735680051380,9.21473676,192.95,192.85,3.08]
[1735680051581,9.21473676,192.95,192.88,6.61863676]
[1735680051782,2.5966,192.92,192.88,2.597]
[1735680052176,6.61863676,192.95,192.88,6.61863676]
[1735680052376,6.61863676,192.95,192.92,2.5965]
[1735680052883,2.5964,192.93,192.9,2.5967]
[1735680053186,6.61863676,192.93,192.86,6.61863676]
[1735680053685,9.21513676,192.93,192.89,2.5968]
[1735680056688,6.61863676,192.95,192.86,6.61863676]
[1735680056890,2.5962,192.94,192.9,2.5967]
[1735680057389,6.61863676,192.93,192.88,2.5969]
[1735680057980,9.21503676,192.93,192.9,2.5967]
[1735680058688,9.21503676,192.93,192.89,2.5969]
[1735680060082,2.5968,192.9,192.87,2.5971]
[1735680060287,2.5968,192.9,192.85,3.08]
[1735680060791,2.5968,192.9,192.86,2.5973]
[1735680061385,2.5967,192.91,192.87,2.5972]
[1735680061789,6.61863676,192.93,192.86,6.61863676]
[1735680062291,2.5966,192.92,192.88,2.5969]
[1735680063191,2.5966,192.92,192.89,2.5968]
[1735680063983,6.61863676,192.93,192.86,6.61863676]
[1735680064188,6.61863676,192.93,192.85,3.08]
[1735680064390,6.61863676,192.91,192.82,1.5748]
[1735680064586,2.5974,192.86,192.83,2.5977]
[1735680064785,6.61863676,192.89,192.8,6.61863676]
[1735680064992,6.61863676,192.87,192.8,6.61863676]
[1735680065286,2.5973,192.86,192.83,2.5977]
[1735680066589,6.61863676,192.87,192.83,2.5977]
[1735680066590,9.21583676,192.87,192.83,2.5977]
[1735680066892,6.61863676,192.89,192.84,2.5976]
[1735680067088,2.5971,192.88,192.84,2.5976]
[1735680067294,3.0297,192.9,192.82,6.61863676]
[1735680067590,1.4789,192.9,192.85,6.61863676]
[1735680067791,2.5966,192.92,192.85,9.69863676]
[1735680068093,2.5966,192.92,192.89,2.5969]
[1735680070889,6.61863676,192.93,192.89,2.5969]
[1735680071092,2.5966,192.91,192.88,2.597]
[1735680072994,6.61863676,192.93,192.85,9.69863676]
[1735680073189,2.5969,192.89,192.85,9.69863676]
[1735680073395,2.5969,192.89,192.85,6.61863676]
[1735680073586,6.61863676,192.89,192.81,8.70656547]
[1735680073789,6.61863676,192.89,192.83,2.5977]
[1735680073790,2.5973,192.86,192.83,2.5977]
[1735680074191,2.5975,192.85,192.82,2.5977]
[1735680075701,2.5975,192.85,192.77,3.08]
[1735680075702,2.5977,192.83,192.77,3.08]
[1735680075890,6.61863676,192.85,192.78,6.61863676]
[1735680076298,6.61863676,192.85,192.77,3.08]
[1735680076495,6.61863676,192.85,192.77,9.69863676]
[1735680076691,6.61863676,192.83,192.77,9.69863676]
[1735680076999,2.5979,192.82,192.77,12.29703676]
[1735680077201,2.5979,192.82,192.77,2.5984]
[1735680077596,2.5979,192.82,192.78,2.5983]
[1735680077798,2.5979,192.82,192.78,9.21693676]
[1735680078502,9.21633676,192.83,192.79,2.5982]
[1735680080096,6.61863676,192.81,192.67,7.05138151]
[1735680080297,6.61863676,192.68,192.67,5.71868151]
[1735680080497,3.08,192.73,192.67,5.71868151]
[1735680080802,6.61863676,192.72,192.67,5.71868151]
[1735680081001,6.61863676,192.72,192.68,2.5996]